Cogmind - Beta 15 @@@ ROGUE MODE // 2025.05.22 @ 01:15:03 Player: celerysam Result: Destroyed by QX-KES(R) with Subdweller Beam Cannon Performance ------------- Evolutions (0) 0 Regions Visited (2) 400 Robots Destroyed (22) 110 Value Destroyed (694) 694 Prototype IDs (0) 0 Alien Tech Used (0) 0 Bonus (-36) -36 TOTAL SCORE: 1168 Bonus ------- Friendly Fire -36 Cogmind --------- Core Integrity 0/250 Matter 167/300 Energy 250/250 System Corruption 0% Temperature Cool (9) Movement Rolling (120) Ox1 Location -10/Subcaves Parts ------- > --- POWER (1) -------- Ion Engine > --- PROPULSION (2) --- Subdweller Monowheel > --- UTILITY (2) ------ Improved Heat Sink Large Storage Unit > --- WEAPON (2) ------- (None) > --- INVENTORY (15) --- Ion Engine Ion Engine Subdweller Power Source Light Treads Wheel Wheel Wheel Wheel Heat Sink Heat Sink Signal Interpreter Scrap Shield Particle Gun Battle Rifle Peak State ------------ > --- POWER ------------ Ion Engine > --- PROPULSION ------- Wheel Subdweller Monowheel > --- UTILITY ---------- Improved Heat Sink Large Storage Unit > --- WEAPON ----------- Particle Gun Light Cannon > --- INVENTORY -------- Ion Engine Ion Engine Subdweller Power Source Light Treads Wheel Wheel Wheel Wheel Heat Sink Heat Sink Signal Interpreter Scrap Shield Battle Rifle Grenade Launcher [Rating: 12] Favorites ----------- Power Light Ion Engine Engine Light Ion Engine Propulsion Wheel Leg Aluminum Leg Wheel Wheel Utility Improved Heat Sink Device Improved Heat Sink Storage Large Storage Unit Weapon Medium Laser Energy Gun Medium Laser Ballistic Gun Assault Rifle Ballistic Cannon Light Cannon Launcher Grenade Launcher Build | -11 -10 -10 ------- Run | Yrd Mat Sub Slots Evolved . | . . . Power . | . . . Propulsion . | . . . Utility . | . . . Weapon . | . . . Parts Attached 26 | 7 13 6 Power 3 | 1 1 1 Engine 3 | 1 1 1 Core . | . . . Reactor . | . . . Propulsion 11 | 2 6 3 Treads . | . . . Leg 2 | 2 . . Wheel 9 | . 6 3 Hover . | . . . Flight . | . . . Utility 4 | 1 3 . Device 1 | . 1 . Storage 3 | 1 2 . Processor . | . . . Hackware . | . . . Protection . | . . . Artifact . | . . . Weapon 8 | 3 3 2 Energy Gun 4 | 2 2 . Energy Cannon . | . . . Ballistic Gun 2 | 1 1 . Ballistic Cannon 1 | . . 1 Launcher 1 | . . 1 Special Weapon . | . . . Impact Weapon . | . . . Slashing Weapon . | . . . Piercing Weapon . | . . . Special Melee Weapon . | . . . Unidentified Prototypes . | . . . Parts Lost 10 | . 6 4 Power 2 | . 2 . Propulsion 4 | . 2 2 Utility . | . . . Weapon 4 | . 2 2 Highest Loss Streak 3 | . 2 3 To Critical Strikes . | . . . Average Backups 11 | 4 10 13 Power 2 | . 2 3 Propulsion 4 | 2 4 5 Utility 2 | . 1 3 Weapon 2 | 1 2 2 Tool/Special . | . . . Unused Backups 17 | . 1 16 Power 5 | . . 5 Propulsion 6 | . 1 5 Utility 4 | . . 4 Weapon 2 | . . 2 Tool/Special . | . . . Average Slot Usage (%) 94 | . 93 97 Engine 12 | . 11 14 Wheel 26 | . 25 26 Device 12 | . 12 14 Storage 14 | . 14 14 Energy Gun 19 | . 24 9 Ballistic Gun 1 | . 2 . Ballistic Cannon 4 | . . 11 Launcher 2 | . . 6 Peak Build Rating 12 | 6 10 12 Average Rating 9 | 3 9 11 On Entrance 5 | . 6 10 Naked Turns . | . . . Heaviest Build 32 | 11 28 32 Greatest Support 30 | 20 26 30 Greatest Overweight (x) 3 | . 1 3 Average Overweight (x) . | . . 1 Largest Inventory Capacity 15 | 8 15 15 Average Capacity 12 | 6 12 15 Most Carried 15 | 6 15 15 Average Carried 11 | 4 11 14 Final Capacity 15 | 8 15 15 Final Carried 15 | 6 14 15 Class Distribution -------------------- 100% | Mutant Dominant Class ---------------- Mutant | -10/Materials Mutant | -10/Subcaves Resources | -11 -10 -10 ----------- Run | Yrd Mat Sub Matter Collected 620 | 234 225 161 Remotely . | . . . Salvage Created 756 | . 556 200 Parts 43 | . 25 18 Haulers Intercepted 1 | . 1 . Recyclers Shooed 1 | . 1 . Parts Field Recycled . | . . . Retrieved Matter . | . . . Parts Self-Destructed 7 | . . 7 Prevented . | . . . Kills | -11 -10 -10 ------- Run | Yrd Mat Sub Combat Hostiles Destroyed 18 | . 12 6 Guns 15 | . 12 3 Cannons 2 | . . 2 AOE 1 | . . 1 Classes Destroyed 7 | . 4 3 Hauler 1 | . 1 . Watcher 3 | . 3 . Swarmer 2 | . 2 . Grunt 10 | . 10 . Sentry 1 | . . 1 Subdweller 5 | . . 5 Scientist 1 | . . 1 Best Kill Streak 3 | . 3 2 Combat Bots Only 2 | . 2 2 Max Kills in Single Turn 1 | . 1 1 Gunslinging . | . . . Exploded 1 | . . 1 Melee . | . . . Uniques/NPCs Destroyed . | . . . Combat | -11 -10 -10 -------- Run | Yrd Mat Sub Hostile Shots Fired 121 | . 84 37 Missed 39 | . 29 10 Hits 82 | . 55 27 Projectile 82 | . 55 27 Critical Strikes 4 | . 2 2 Damage Taken 1186 | . 651 535 Core 255 | . 135 120 Absorbed by Shields . | . . . Core Remaining (%) 100 | 100 . . Volleys Fired 115 | . 55 60 Largest 2 | . 2 2 Hottest 115 | . 115 115 Shots Fired 181 | . 105 76 Gun 122 | . 105 17 Cannon 56 | . . 56 Launcher 3 | . . 3 Special . | . . . Kinetic 81 | . 25 56 Thermal 82 | . 65 17 Explosive 3 | . . 3 Electromagnetic 15 | . 15 . Robot Hit Streak 15 | . 15 8 Robot Miss Streak 4 | . 4 1 Penetration Max . | . . . Secondary Targets 1 | . 1 . Max Gunslinging Chain 1 | . 1 . Shots Hit Robots 89 | . 65 24 Core Hits 42 | . 30 12 Critical Kills . | . . . Critical Parts Destroyed . | . . . Critical Strikes 3 | . 2 1 Burn 1 | . 1 . Blast 1 | . . 1 Corrupt 1 | . 1 . Melee Attacks . | . . . Impact . | . . . Slashing . | . . . Piercing . | . . . Sneak Attacks . | . . . Combat Hostiles . | . . . Follow-up Attacks . | . . . Damage Inflicted 1429 | . 934 495 Guns 1046 | . 886 160 Cannons 192 | . . 192 Explosions 191 | . 48 143 Melee . | . . . Ramming . | . . . Kinetic 384 | . 192 192 Thermal 762 | . 602 160 Explosive 143 | . . 143 Electromagnetic 140 | . 140 . Impact . | . . . Slashing . | . . . Piercing . | . . . Highest Corruption . | . . . Average Corruption . | . . . Corruption Purged . | . . . Corruption Blocked . | . . . Overload Shots . | . . . Overflow Damage . | . . . Projectiles . | . . . Explosions . | . . . Melee . | . . . Knockbacks 2 | . . 2 Impact . | . . . Kinetic 2 | . . 2 Secondary . | . . . Self-Inflicted Damage . | . . . Shots . | . . . Rammed . | . . . Targets Rammed . | . . . Kicked . | . . . Crushed . | . . . Highest Temperature 240 | . 124 240 Average Temperature 42 | . 36 120 Received Heat Transfer 756 | . 372 384 Siege Activations . | . . . Martial Activations . | . . . Shielding Activations . | . . . Robots Disrupted . | . . . Combat Hostiles . | . . . Robots Corrupted . | . . . Combat Hostiles . | . . . Parts Fried . | . . . Impact Corruptions . | . . . Robots Melted . | . . . Combat Hostiles . | . . . Parts Melted 2 | . 2 . Heat Transferred 2159 | . 1752 407 Parts Sabotaged . | . . . Parts Stolen . | . . . Parts Stripped . | . . . Power Chain Reactions 1 | . 1 . Alert | -11 -10 -10 ------- Run | Yrd Mat Sub Maximum Alert Level . | . . . Low Security (%) 100 | 100 100 . Level 1 . | . . . Level 2 . | . . . Level 3 . | . . . Level 4 . | . . . Level 5 . | . . . High Security . | . . . Max Security . | . . . Peak Influence 76 | . 76 . Initial . | . . . Average 19 | . 20 . Influence Increases 403 | . 383 20 Destroy 0b10 Robot/C 260 | . 240 20 Destroy 0b10 Robot/NC 20 | . 20 . Destroy Leader 68 | . 68 . Successful Hack 9 | . 9 . Destroy Structure 1 | . 1 . Lose Combat Pursuer 45 | . 45 . Influence Decreases 403 | . 381 22 Entered New Map 2 | . . 2 Time Decay 361 | . 341 20 Lost Part 40 | . 40 . Squads Dispatched 2 | . 2 . Investigation 2 | . 2 . Extermination . | . . . Reinforcement . | . . . Assault . | . . . Garrison . | . . . Intercept . | . . . Searches Triggered . | . . . Construction Impeded . | . . . Haulers Reinforced . | . . . Active Scanning Responses . | . . . Cargo Convoy Interrupts . | . . . Stealth | -11 -10 -10 --------- Run | Yrd Mat Sub Distress Signals . | . . . Communications Jammed . | . . . Distress Signals . | . . . Times Spotted 27 | . 19 8 Peak Tracking Total 4 | . 4 2 Tactical Retreats 3 | . 3 . Traps | -11 -10 -10 ------- Run | Yrd Mat Sub Traps Triggered 2 | . 2 . Indirectly . | . . . Trap Hack Attempts . | . . . Triggered . | . . . Disarmed . | . . . Reprogrammed . | . . . Reused . | . . . Traps Extracted . | . . . Installed . | . . . Triggered . | . . . Machines | -11 -10 -10 ---------- Run | Yrd Mat Sub Machines Disabled . | . . . Max in Single Turn . | . . . Machines Repaired . | . . . Machines Dismantled . | . . . Machines Sabotaged . | . . . Overloaded Fab Kills . | . . . Hacking | -11 -10 -10 --------- Run | Yrd Mat Sub Machines Accessed 3 | . 3 . Terminals 3 | . 3 . Fabricators . | . . . Repair Stations . | . . . Recycling Units . | . . . Scanalyzers . | . . . Garrison Access . | . . . Total Hacks 5 | . 5 . Successful 2 | . 2 . Failed 3 | . 3 . Catastrophic 1 | . 1 . Database Lockouts . | . . . Manual 5 | . 5 . Terminals 5 | . 5 . Fabricators . | . . . Repair Stations . | . . . Recycling Units . | . . . Scanalyzers . | . . . Garrison Access . | . . . Terminal Hacks . | . . . Fabricator Hacks . | . . . Repair Station Hacks . | . . . Recycling Unit Hacks . | . . . Scanalyzer . | . . . Garrison Access Hacks . | . . . Unauthorized Hacks 2 | . 2 . Terminals 2 | . 2 . Botnet 2 | . 2 . Fabricators . | . . . Repair Stations . | . . . Recycling Units . | . . . Scanalyzers . | . . . Garrison Access . | . . . Data Cores Recovered . | . . . Used . | . . . Hacking Detections 2 | . 2 . Full Trace Events 1 | . 1 . Feedback Events . | . . . Feedback Blocked . | . . . Robot Schematics Acquired . | . . . Robots Built . | . . . Authchips . | . . . Time . | . . . Total Robot Build Rating . | . . . Part Schematics Acquired . | . . . Parts Built . | . . . Authchips . | . . . Time . | . . . Total Part Build Rating . | . . . Parts Repaired . | . . . Time . | . . . Parts Recycled . | . . . Recycled Matter . | . . . Retrieved Matter . | . . . Retrieved Components . | . . . Parts Scanalyzed . | . . . Part Schematics Acquired . | . . . Parts Damaged . | . . . Bothacking | -11 -10 -10 ------------ Run | Yrd Mat Sub Used RIF Installer . | . . . Robots Hacked . | . . . Non-combat . | . . . Combat . | . . . Robot Hacks Applied . | . . . Relay Couplers Released . | . . . Fabnet Peak Effective % . | . . . Robots Rewired . | . . . Allies Hacked . | . . . Hacks Repelled . | . . . Allies | -11 -10 -10 -------- Run | Yrd Mat Sub Total Allies . | . . . Largest Group . | . . . Highest-Rated Group . | . . . Highest-Rated Ally . | . . . Total Orders . | . . . Ally Attacks . | . . . Total Damage . | . . . Kills . | . . . Allies Corrupted . | . . . Allies Melted . | . . . Intel | -11 -10 -10 ------- Run | Yrd Mat Sub Active Infowar (turns) . | . . . Robot Analysis Total . | . . . Derelict Logs Recovered . | . . . Drone Launches . | . . . Drone Recoveries . | . . . Exploration | -11 -10 -10 ------------- Run | Yrd Mat Sub Turns Passed 1850 | 80 1157 613 Spaces Moved 1447 | 64 1005 378 Core 19 | 19 . . Treads . | . . . Legs 54 | 45 9 . Wheels 1374 | . 996 378 Hover . | . . . Flight . | . . . Fastest Speed 50 | 50 80 95 Average Speed 94 | 99 91 102 Slowest Speed 125 | 120 120 125 Overloaded Moves . | . . . Propulsion Burnouts . | . . . Robots Hopped . | . . . Potential Cave-ins . | . . . Cave-ins Triggered . | . . . Exploration Rate (%) 43 | 4 98 28 Regions Visited 2 Branch Regions 1 Pre-discovered Areas . | . . . Known Exits Taken . | . . . Unknown Exits Taken 2 | 1 1 . Scrap Searched . | . . . Spaces Dug . | . . . Terrain Destroyed 9 | . . 9 Melee . | . . . Projectile . | . . . AOE 9 | . . 9 Terrain Rammed . | . . . Walls Destroyed . | . . . Machines Disabled . | . . . Actions | -11 -10 -10 --------- Run | Yrd Mat Sub Total 1748 | 78 1140 530 Wait 115 | . 40 75 Move 1445 | 63 1004 378 Hop . | . . . Pick Up 31 | 8 18 5 Fast Attach 7 | 4 2 1 Attach 8 | 2 5 1 Detach . | . . . Swap 12 | 1 7 4 Drop 15 | . 9 6 Fire 115 | . 55 60 Melee . | . . . Ram . | . . . Kick . | . . . Crush . | . . . Escape Stasis . | . . . Rewire . | . . . Trap . | . . . Miscellaneous . | . . . Route ------- -11/Scrapyard -10/Materials (discovered 6 exits: [*Mat x3] / [*Min x2] / [*Sub]) -10/Subcaves (discovered 1 exit: [*Mat]) History --------- Turn | Location | Event 12 | -11/Scrapyard | Discovered new exit (range 15) 81 | -11/Scrapyard | Entered Materials 335 | -10/Materials | Discovered new exit (range 5) 344 | -10/Materials | Build established: Mutant 393 | -10/Materials | Discovered new exit (range 9) 430 | -10/Materials | Discovered new exit (range 8) 653 | -10/Materials | Discovered new exit (range 9) 780 | -10/Materials | Discovered new exit (range 10) 831 | -10/Materials | Core integrity fell below 50% 1227 | -10/Materials | Discovered new exit (range 11) 1238 | -10/Materials | Entered Subcaves 1239 | -10/Subcaves | Approached by a straggling Scientist 1364 | -10/Subcaves | Discovered new exit (range 8) 1838 | -10/Subcaves | Core integrity fell below 20% 1851 | -10/Subcaves | Destroyed by QX-KES(R) with Subdweller Beam Cannon Last Messages --------------- 01532_ Acquired 32 matter. 01534_ Acquired 4 matter. 01536_ 0J-EQO(R) destroyed. 01537_ Acquired 4 matter. 01540_ Dropped Wheel. 01542_ Acquired 1 matter. 01551_ Acquired 4 matter. 01553_ QS-9MT(R): "SUBMAD!" 01559_ QS-9MT(R) destroyed. 01576_ Acquired 23 matter. 01603_ Acquired 22 matter. 01617_ B6-7EF(u) tweaks Twisted Machinery. 01669_ B6-7EF(u) builds Twisted Machinery. 01705_ B6-7EF(u) tweaks Twisted Machinery. 01711_ B6-7EF(u) builds Twisted Machinery. 01825_ Critical hit (Meltdown: +270). 01825_ JX-LTQ(R) knocked back. 01826_ Grenade Launcher destroyed. 01832_ Wheel destroyed. 01834_ Lgt. Cannon destroyed. Map ----- +----------------------------------------------------+ | ?????????????????????????????????????????????????? | | ?????????????????????????????????????????????????? | | ?????????????????????????????????????????????????? | | ?????????????????????????????????????????????????? | | ?????????????????????????????????????????????????? | | ?????????????????????????????????????????????????? | | ?????????????????????????????????????????????????? | | ?????????????????????????????????????????????????? | | ?????????????????????????????????????????????????? | | ?????????????????????????????????????????????????? | | ?????????????????????????????????????????????????? | | ?????????????????????????????????????????????????? | | ?????????????????????????????????????????????????? | | ?????????????????????????????????????????????????? | | ?????????????????????????????????????????????????? | | ?????????????????????????????????????????????????? | | ?????????????????????????????????????????????????? | | ?????????????????????????????????????????????????? | | ????????????????#????????????????????????????????? | | ???????????????## #####??????????????????????????? | | ???????????????# # ??????????????????????????? | | ???????????????? u"?????????????????????????? | | ?????????????????? "#######??????????????????? | | ????????????????????# "" ##?????????????????# | | ????????????????# # # #????????????????## | | ?????????????? "" R @ #????????????????# | | ?????????????? "R ;# #????????????????## | | ??????????????? ##"" % ##"" #########??######## | | ?????????????????## ""# """" ## #### # # | | ??????????????????# # ### "" ## | | ??????????????????##?##??# | | ?????????????????????????# #### | | ?????????????????????????### ##??## ##### | | ???????????????????????????#####????##########???? | | ?????????????????????????????????????????????????? | | ?????????????????????????????????????????????????? | | ?????????????????????????????????????????????????? | | ?????????????????????????????????????????????????? | | ?????????????????????????????????????????????????? | | ?????????????????????????????????????????????????? | | ?????????????????????????????????????????????????? | | ?????????????????????????????????????????????????? | | ?????????????????????????????????????????????????? | | ?????????????????????????????????????????????????? | | ?????????????????????????????????????????????????? | | ?????????????????????????????????????????????????? | | ?????????????????????????????????????????????????? | | ?????????????????????????????????????????????????? | | | | | +----------------------------------------------------+ Best States ------------- Heat Dissipation 39 Energy Generation 10 Energy Capacity 250 Matter Stores 300 Matter Capacity 300 Sight Range 16 Terrain Scan Density 10 Evasion (%) 55 Item Schematics ----------------- None Robot Schematics ------------------ None Fabricated ------------ Nothing Repaired ---------- Nothing Alien Tech Used ----------------- None Achievements -------------- None Challenges ------------ None Game ------ Seed CargoCooledBarrier Manual? 0 Play Time 00:24:58 Cumulative 257.1 hours Start 2025.05.21 @ 23:46:20 End 2025.05.22 @ 01:15:03 Sessions 1 Manual Loads 0 Difficulty Rogue Special Mode None Game No. 386 Rogue 386 Adventurer 0 Explorer 0 Win Type - Total 1 Types 1/0/0/0/0/0/0/0/0/0 Lore% 62 Gallery% 62 Achievement% 43 Wizard Run 0 Options --------- Layout 1 ASCII 0 Keyboard 0 Movement Mouse Keybinds 0 Fullscreen 2 Font 24/Smallcaps Map View 50x35 Zoom Use 0% Tactical HUD 1 Map Filters NONE Filters NONE Steam 1 RUN: 57b0fc79-a923-41bb-a6cd-9cc708acdaf9